lending/lending_fUSD_20240810
["ID","MTS","AMOUNT","RATE_DAILY","PERIOD"]
[334577497,1723263041144,-151.0,0.00010998,2]
[334577498,1723263041155,-256.386667,0.00010998,2]
[334577499,1723263041166,-332.390124,0.00010998,2]
[334577500,1723263041176,-332.390124,0.00010998,2]
[334577501,1723263041187,-332.390124,0.00010998,2]
[334577502,1723263041197,-332.390124,0.00010998,2]
[334577503,1723263041208,-332.390124,0.00010998,2]
[334577504,1723263041218,-332.390124,0.00010998,2]
[334577505,1723263041228,-332.390124,0.00010998,2]
[334577506,1723263041238,-332.390124,0.00010998,2]
[334577507,1723263041247,-332.390124,0.00010998,2]
[334577508,1723263041256,-332.390124,0.00010998,2]
[334577509,1723263041267,-151.0,0.00010998,2]
[334577510,1723263041277,-151.0,0.00010998,2]
[334577511,1723263041287,-151.0,0.00010998,2]
[334577512,1723263041297,-151.0,0.00010998,2]
[334577513,1723263041307,-151.0,0.00010998,2]
[334577514,1723263041317,-151.0,0.00010998,2]
[334577515,1723263041327,-151.0,0.00010998,2]
[334577516,1723263041336,-151.0,0.00010998,2]
[334577517,1723263041346,-151.0,0.00010998,2]
[334577518,1723263041356,-151.0,0.00010998,2]
[334577519,1723263041366,-221.145377,0.00010998,2]
[334577520,1723263041375,-151.0,0.00010998,2]
[334577521,1723263041384,-151.0,0.00010998,2]
[334577522,1723263041394,-151.0,0.00010998,2]
[334577523,1723263041403,-151.0,0.00010998,2]
[334577524,1723263041412,-151.0,0.00010998,2]
[334577525,1723263041421,-558.010109,0.00010998,2]
[334577526,1723263041430,-558.010109,0.00010998,2]
[334577527,1723263041440,-558.010109,0.00010998,2]
[334577528,1723263041449,-558.010109,0.00010998,2]
[334577529,1723263041458,-236.777246,0.00010998,2]
[334577530,1723263041467,-236.777246,0.00010998,2]
[334577531,1723263041478,-236.777246,0.00010998,2]
[334577532,1723263041488,-558.010109,0.00010998,2]
[334577533,1723263041497,-236.777246,0.00010998,2]
[334577534,1723263041507,-558.010109,0.00010998,2]
[334577535,1723263041516,-558.010109,0.00010998,2]
[334577536,1723263041526,-558.010117,0.00010998,2]
[334577537,1723263041535,-236.777246,0.00010998,2]
[334577538,1723263041544,-236.777246,0.00010998,2]
[334577539,1723263041554,-236.777246,0.00010998,2]
[334577540,1723263041563,-236.777253,0.00010998,2]
[334577541,1723263041572,-151.0,0.00010998,2]
[334577542,1723263041581,-151.0,0.00010998,2]
[334577543,1723263041591,-151.0,0.00010998,2]
[334577544,1723263041600,-151.0,0.00010998,2]
[334577545,1723263041609,-756.463269,0.00010998,2]
[334577546,1723263041619,-756.463269,0.00010998,2]
[334577547,1723263041629,-756.463269,0.00010998,2]
[334577548,1723263041638,-756.463269,0.00010998,2]
[334577549,1723263041648,-756.463269,0.00010998,2]
[334577550,1723263041658,-756.463269,0.00010998,2]
[334577551,1723263041668,-756.463269,0.00010998,2]
[334577552,1723263041678,-756.463276,0.00010998,2]
[334577553,1723263041687,-151.0,0.00010998,2]
[334577554,1723263041698,-215.886832,0.00010998,2]
[334577556,1723263041708,-659.965787,0.00010998,2]
[334577558,1723263041719,-659.965787,0.00010998,2]
[334577560,1723263041728,-659.965787,0.00010998,2]
[334577562,1723263041739,-659.965787,0.00010998,2]
[334577564,1723263041748,-659.965787,0.00010998,2]
[334577566,1723263041758,-659.965787,0.00010998,2]
[334577568,1723263041768,-659.965787,0.00010998,2]
[334577570,1723263041780,-659.965785,0.00010998,2]
[334577572,1723263041789,-5944.488899,0.00010998,2]
[334577574,1723263041799,-5944.488899,0.00010998,2]
[334577576,1723263041808,-5944.488899,0.00010998,2]
[334577578,1723263041818,-151.0,0.00010998,2]
[334577580,1723263041827,-151.0,0.00010998,2]
[334577582,1723263041837,-5944.488899,0.00010998,2]
[334577584,1723263041847,-151.0,0.00010998,2]
[334577586,1723263041857,-5944.488899,0.00010998,2]
[334577588,1723263041867,-5944.488905,0.00010998,2]
[334577590,1723263041877,-151.0,0.00010998,2]
[334577592,1723263041887,-1082.509653,0.00010998,2]
[334577594,1723263041896,-151.0,0.00010998,2]
[334577596,1723263041906,-1082.509653,0.00010998,2]
[334577598,1723263041917,-151.0,0.00010998,2]
[334577600,1723263041926,-1082.509653,0.00010998,2]
[334577602,1723263041936,-1123.42877866,0.00010999,3]
[334577604,1723263041946,-151.0,0.00010999,2]
[334577606,1723263041961,-172.84408,0.00010999,2]
[334577608,1723263041971,-172.84408,0.00010999,2]
[334577610,1723263041981,-151.0,0.00010999,2]
[334577612,1723263041991,-151.0,0.00010999,2]
[334577614,1723263042000,-151.0,0.00010999,2]
[334577616,1723263042010,-809.123397,0.00010999,2]
[334577618,1723263042019,-809.123397,0.00010999,2]
[334577619,1723263042028,-181.841724,0.00010999,2]
[334577621,1723263042040,-151.0,0.00010999,2]
[334577623,1723263042050,-332.390124,0.00010999,2]
[334577625,1723263042059,-332.390124,0.00010999,2]
[334577627,1723263042069,-151.0,0.00010999,2]
[334577629,1723263042078,-151.0,0.00010999,2]
[334577631,1723263042088,-151.0,0.00010999,2]
[334577633,1723263042100,-107574.83862157,0.00011,2]
[334577635,1723263042109,-183179.9067035,0.00011,2]
[334577654,1723263042298,-519.07829482,0.00011,2]
[334577663,1723263042380,-151.0,0.00010722,2]
[334577665,1723263042390,-305.62397909,0.00010722,2]
[334577666,1723263042401,-776.88567391,0.00010722,2]
[334577667,1723263042411,-237.056633,0.000109,2]
[334577668,1723263042420,-1082.509653,0.000109,2]
[334577669,1723263042431,-1082.509653,0.000109,2]
[334577670,1723263042441,-221469.72407359,0.00011,2]
[334577672,1723263043146,-1076.0,0.00010722,2]
[334577673,1723263043156,-19.78215054,0.000109,2]
[334577690,1723263213937,217.65,8.219e-05,2]
[334577691,1723263264781,1380.91970713,8.219e-05,2]
[334577693,1723263762692,206.76,8.219e-05,2]
[334577694,1723263895484,292.29484418,8.219e-05,2]
[334577695,1723263898788,241.00294461,8.219e-05,2]
[334577696,1723263900352,640.31557769,8.219e-05,2]
[334577697,1723263906020,155.70487267,8.219e-05,2]
[334577698,1723263906098,1310.03265313,8.219e-05,2]
[334577699,1723263917631,304.13643283,8.219e-05,2]
[334577700,1723263920430,268.42929702,8.219e-05,2]
[334577701,1723263921907,334.72054665,8.219e-05,2]
[334577702,1723263928772,414.8471805,8.219e-05,2]
[334577703,1723263948940,363.93079041,8.219e-05,2]
[334577704,1723263960398,582.02652029,8.219e-05,2]
[334577705,1723263978117,872.21788992,8.219e-05,2]
[334577706,1723263993490,14358.11120804,8.219e-05,2]
[334577709,1723264010244,159.05303876,8.219e-05,2]
[334577710,1723264012104,1431.11051624,8.219e-05,2]
[334577711,1723264043934,364.68746853,8.219e-05,2]
[334577712,1723264067294,600.54633583,8.219e-05,2]
[334577713,1723264081066,9708.12,9.63e-05,2]
[334577714,1723264094493,14358.11120804,8.219e-05,2]
[334577716,1723264106255,158.99747938,8.219e-05,2]
[334577718,1723264163699,-250.0,9.722e-05,2]
[334577719,1723264163724,-205.9,9.727e-05,2]
[334577720,1723264163746,-280.87,9.916e-05,2]
[334577721,1723264163769,-200.0,9.928e-05,2]
[334577722,1723264163791,-1000.0,9.93e-05,2]
[334577723,1723264163814,-217.78,9.957e-05,2]
[334577724,1723264163837,-7586.18588189,9.962e-05,2]
[334577725,1723264163859,-300.0,9.979e-05,2]
[334577726,1723264163881,-300.0,9.979e-05,2]
[334577727,1723264163903,-426.27,9.98e-05,2]
[334577728,1723264163925,-356.46,9.98e-05,2]
[334577729,1723264163958,-426.27,9.98e-05,2]
[334577730,1723264163980,-426.27,9.98e-05,2]
[334577731,1723264164002,-426.27,9.98e-05,2]
[334577732,1723264164024,-426.27,9.98e-05,2]
[334577733,1723264164045,-313.0,9.986e-05,2]
[334577734,1723264164068,-173.85,9.99e-05,2]
[334577735,1723264164090,-426.27,9.99e-05,2]
[334577736,1723264164112,-7976.33411811,0.0001,2]
[334577739,1723264229485,229.64,8.219e-05,2]
[334577750,1723264232423,-200.0,9.994e-05,2]
[334577751,1723264232432,-196.24892489,0.0001,2]
[334577753,1723264232773,-286.18192272,0.0001,2]
[334577755,1723264232794,-734.6075021,0.0001,2]
[334577756,1723264232814,-5151.0318562,0.0001,2]
[334577764,1723264238605,-240.92979409,0.0001,2]
[334577765,1723264238615,-162.7027261,0.0001,2]
[334577766,1723264238624,-426.27,0.00010078,2]
[334577767,1723264238633,-199.83,0.00010085,2]
[334577768,1723264238642,-36.16622342,0.00010085,2]
[334577769,1723264238726,-253.82377658,0.00010085,2]
[334577770,1723264238735,-150.99,0.00010085,2]
[334577771,1723264238746,-300.0,0.00010377,2]
[334577772,1723264238755,-300.0,0.00010377,2]
[334577773,1723264238765,-507.83,0.00010378,2]
[334577774,1723264238775,-150.0,0.00010378,2]
[334577775,1723264238784,-150.0,0.00010378,2]
[334577776,1723264238793,-150.0,0.00010378,2]
[334577777,1723264238803,-150.0,0.00010378,2]
[334577778,1723264238812,-150.0,0.00010378,2]
[334577779,1723264238821,-198.84,0.00010378,2]
[334577780,1723264238830,-426.27,0.000104,2]
[334577781,1723264238840,-11498.0,0.000104,3]
[334577782,1723264238849,-835.07,0.00010459,2]
[334577783,1723264238858,-835.07,0.00010459,2]
[334577784,1723264238867,-835.07,0.00010459,2]
[334577786,1723264238877,-835.17,0.00010459,2]
[334577788,1723264238886,-835.07,0.00010459,2]
[334577790,1723264238896,-229.64,0.00010478,2]
[334577792,1723264238906,-150.0,0.00010699,2]
[334577794,1723264238916,-426.27,0.000107,2]
[334577796,1723264238925,-426.27,0.000107,2]
[334577798,1723264238935,-835.07,0.000107,2]
[334577800,1723264238944,-426.27,0.000107,2]
[334577802,1723264238953,-835.07,0.000107,2]
[334577804,1723264238963,-426.27,0.000108,2]
[334577806,1723264238972,-426.27,0.000108,2]
[334577808,1723264238982,-426.27,0.000108,2]
[334577810,1723264238992,-426.27,0.000108,2]
[334577812,1723264239002,-426.27,0.000108,2]
[334577814,1723264239013,-426.27,0.000108,2]
[334577816,1723264239023,-299.9361353,0.000109,2]
[334577818,1723264239032,-919.92582293,0.000109,2]
[334577820,1723264239042,-1000.0,0.000109,2]
[334577822,1723264239051,-528.26739363,0.000109,2]
[334577824,1723264239060,-11498.0,0.000109,5]
[334577826,1723264239070,-309.22847159,0.000109,2]
[334577828,1723264239079,-187.94001181,0.000109,2]
[334577830,1723264239088,-205.9,0.00010943,2]
[334577832,1723264239097,-250.0,0.00010959,2]
[334577834,1723264239107,-163.34208761,0.00010997,2]
[334577836,1723264239117,-1322.334289,0.00010998,2]
[334577838,1723264239126,-616.74502877,0.00010999,2]
[334577840,1723264239135,-1118.52845879,0.00011,2]
[334577842,1723264239147,-663.28704348,0.00011,2]
[334577880,1723264240415,-530.90005515,0.00011,2]
[334577988,1723264244734,-426.27,0.000107,2]
[334577989,1723264244744,-60.31845795,0.00011,2]
[334578002,1723264247085,-3327.6135,0.000109,2]
[334578003,1723264247094,-1672.0,0.000109,2]
[334578004,1723264247104,-8712.4309134,0.00011,2]
[334578005,1723264247123,-2064.39225517,0.00011,2]
[334578007,1723264617743,1336.46071807,9.65e-05,2]
[334578008,1723264782342,206.67,8.31e-05,2]
[334578009,1723264927521,5000.0,0.00027,120]
[334578010,1723264982099,906.74,0.00024657,120]
[334578011,1723264982378,906.74,0.00025342,120]
[334578012,1723264982661,906.74,0.00026027,120]
[334578013,1723264982956,906.74,0.00026712,120]
[334578014,1723265123517,3000.0,0.00027,120]
[334578021,1723265398233,196.33,8.219e-05,2]
[334578022,1723265431528,-3144.07254094,9.9e-05,2]
[334578023,1723265431539,-2779.46540887,9.9e-05,2]
[334578024,1723265431548,-181.77327413,0.0001,2]
[334578025,1723265431558,-550.0,0.0001,2]
[334578026,1723265431567,-303.3037382,0.0001,2]
[334578027,1723265431576,-217.78,0.00010004,2]
[334578028,1723265431585,-199.85,0.00010088,2]
[334578029,1723265431594,-160.0,0.00010139,2]
[334578030,1723265431603,-173.85,0.00010145,2]
[334578031,1723265431612,-72.80252219,0.00010324,2]
[334578032,1723265431627,-227.19747781,0.00010324,2]
[334578033,1723265431637,-196.52,0.00010325,2]
[334578034,1723265431646,-840.0,0.00010325,2]
[334578035,1723265431655,-150.0,0.00010411,2]
[334578036,1723265431664,-44.48100946,0.0001045,2]
[334578037,1723265431675,-2887.5944,0.0001045,2]
[334578038,1723265431689,-360.246502,0.0001045,2]
[334578039,1723265437687,-302.00176975,0.0001045,2]
[334578040,1723265437769,-1355.02815999,0.0001045,2]
[334578041,1723265437781,-5050.6481588,0.0001045,2]
[334578042,1723265437792,-3026.0718388,0.0001045,2]
[334578051,1723265439585,-787.67306559,0.0001045,2]
[334578052,1723265439597,-1596.88006637,0.0001045,2]
[334578058,1723265439667,-2327.8579357,0.0001045,2]
[334578061,1723265439680,-340.78144659,0.0001045,2]
[334578069,1723265439746,-561.03662748,0.0001045,2]
[334578071,1723265439756,-113.49337252,0.00010479,2]
[334578073,1723265439767,-82.83662748,0.00010479,2]
[334578075,1723265439777,-356.46,0.000105,2]
[334578077,1723265439786,-178.20591924,0.000105,2]
[334578079,1723265439797,-178.25408076,0.000105,2]
[334578081,1723265439806,-2193.22088767,0.000105,2]
[334578083,1723265439817,-1162.52306788,0.000105,2]
[334578085,1723265439829,-561.97850452,0.000105,2]
[334578100,1723265442576,-2581.2614539,0.000105,2]
[334578101,1723265442648,-650.96828781,0.000105,2]
[334578102,1723265442660,-6394.00779822,0.000105,2]
[334578103,1723265442668,-1373.60300075,0.000105,2]
[334578104,1723265442679,-6462.54147635,0.000105,2]
[334578105,1723265442722,-392.53560421,0.000105,2]
[334578106,1723265442733,-709.17,0.000105,2]
[334578107,1723265442744,-662.49991869,0.000105,2]
[334578108,1723265442753,-16912.24,0.000105,2]
[334578109,1723265442762,-420.86,0.000105,2]
[334578110,1723265442773,-420.86,0.000105,2]
[334578111,1723265442785,-420.86,0.000105,2]
[334578112,1723265442796,-835.07,0.000106,2]
[334578113,1723265442807,-344.5,0.000106,2]
[334578114,1723265442817,-420.86,0.000106,2]
[334578115,1723265442827,-356.46,0.000106,2]
[334578116,1723265442836,-150.0,0.000106,2]
[334578117,1723265442845,-150.0,0.000106,2]
[334578118,1723265442854,-356.46,0.000106,2]
[334578119,1723265442864,-420.86,0.000106,2]
[334578120,1723265442873,-291.65630345,0.000106,2]
[334578121,1723265444004,-64.80369655,0.000106,2]
[334578122,1723265444014,-150.0,0.000106,2]
[334578123,1723265444025,-150.0,0.000106,2]
[334578124,1723265444037,-712.92,0.000106,2]
[334578125,1723265444047,-150.0,0.000106,2]
[334578126,1723265444057,-420.86,0.000106,2]
[334578127,1723265444068,-300.0,0.000106,2]
[334578128,1723265444081,-835.07,0.000106,2]
[334578129,1723265444091,-420.86,0.000106,2]
[334578130,1723265444102,-835.07,0.000106,2]
[334578131,1723265444113,-420.86,0.000106,2]
[334578132,1723265444124,-835.07,0.000106,2]
[334578133,1723265444133,-420.86,0.000106,2]
[334578134,1723265444143,-844.1,0.000106,2]
[334578135,1723265444152,-835.17,0.000106,2]
[334578136,1723265444162,-420.86,0.000106,2]
[334578137,1723265444172,-230.86388941,0.000108,2]
[334578138,1723265444189,-189.99611059,0.000108,2]
[334578139,1723265444198,-420.86,0.000108,2]
[334578140,1723265444207,-420.86,0.000108,2]
[334578141,1723265444218,-420.92,0.000108,2]
[334578142,1723265444229,-420.92,0.000108,2]
[334578143,1723265444238,-835.07,0.000108,2]
[334578144,1723265444247,-1412.9139165,0.0001089,2]
[334578145,1723265444257,-1000.0,0.000109,2]
[334578146,1723265444266,-1933.09213829,0.000109,2]
[334578147,1723265444278,-2130.92896171,0.000109,2]
[334578148,1723265444287,-3109.7842,0.000109,2]
[334578149,1723265444296,-754.2244,0.000109,2]
[334578150,1723265444305,-3327.6135,0.000109,2]
[334578151,1723265444315,-310.55183727,0.000109,2]
[334578152,1723265444324,-500.0,0.000109,2]
[334578153,1723265444333,-7500.0,0.000109,2]
[334578154,1723265444343,-163.34208762,0.00010997,2]
[334578155,1723265444352,-205.28479709,0.00010998,2]
[334578156,1723265444364,-3883.30787781,0.00010998,2]
[334578157,1723265444373,-2371.1419122,0.00010998,2]
[334578158,1723265444383,-1031.5371384,0.00010998,2]
[334578159,1723265444392,-16235.78031651,0.00011,2]
[334578160,1723265445622,-376.58731798,0.00011,2]
[334578163,1723265445634,-456.77284759,0.00011,2]
[334578165,1723265445645,-16344.51668327,0.00011,2]
[334578176,1723265445766,-2535.49260384,0.00011,2]
[334578177,1723265445777,-2447.91218181,0.00011,2]
[334578178,1723265445822,-11972.59660724,0.00011,2]
[334578179,1723265445864,-1199.04761727,0.00011,2]
[334578180,1723265445875,-1944.06553246,0.00011,2]
[334578181,1723265445886,-285.34939309,0.00011,2]
[334578182,1723265451842,150.0,9.429e-05,7]
[334578183,1723265451863,110.71632623,9.429e-05,7]
[334578186,1723265482073,161.13,8.824e-05,2]
[334578190,1723265589384,755.61,0.00024657,120]
[334578191,1723265589660,755.61,0.00025342,120]
[334578192,1723265589935,755.61,0.00026027,120]
[334578193,1723265590222,755.61,0.00026712,120]
[334578194,1723265876401,208.18,8.601e-05,2]
[334578195,1723265916106,14358.11120804,8.601e-05,2]
[334578199,1723265981573,160.84,8.371e-05,2]
[334578200,1723266004120,363.71319874,8.601e-05,2]
[334578202,1723266217999,629.68,0.00024657,120]
[334578203,1723266218289,629.68,0.00025342,120]
[334578204,1723266218630,629.68,0.00026027,120]
[334578205,1723266218917,629.68,0.00026712,120]
[334578208,1723266454998,160.84,8.119e-05,2]
[334578209,1723266466729,197.77,8.236e-05,2]
[334578219,1723266631720,-255.97559429,9.983e-05,2]
[334578220,1723266631733,-111.90358532,9.983e-05,2]
[334578221,1723266631743,-550.0,0.0001,2]
[334578222,1723266631753,-157.22,0.00010125,2]
[334578223,1723266631763,-160.0,0.00010313,2]
[334578224,1723266631773,-106.44728262,0.00010424,2]
[334578225,1723266631787,-193.55271738,0.00010424,2]
[334578226,1723266631796,-306.04728262,0.00010425,2]
[334578227,1723266631807,-74.58115276,0.00010425,2]
[334578228,1723266631818,-925.31944724,0.00010425,2]
[334578229,1723266631830,-624.58703951,0.00010425,2]
[334578230,1723266631839,-375.80616049,0.00010425,2]
[334578231,1723266631851,-957.30298068,0.00010425,2]
[334578232,1723266631867,-600.0,0.00010425,2]
[334578233,1723266631903,-544.02,0.00010425,2]
[334578234,1723266631962,-1203.16688099,0.00010425,2]
[334578235,1723266631973,-1122.41372421,0.00010425,2]
[334578236,1723266631982,-522.72802597,0.00010425,2]
[334578237,1723266631992,-1419.32018921,0.00010425,2]
[334578238,1723266632003,-1419.32018921,0.00010425,2]
[334578239,1723266632012,-197.77,0.000105,2]
[334578240,1723266632022,-202.81,0.00010631,2]
[334578241,1723266632031,-872.0,0.00010686,2]
[334578242,1723266632041,-507.59168347,0.00010696,2]
[334578244,1723266632051,-499.99,0.00010759,2]
[334578246,1723266632061,-150.0,0.00010759,2]
[334578248,1723266632072,-1136.0,0.0001076,2]
[334578250,1723266632082,-150.548,0.0001076,2]
[334578252,1723266632092,-556.0,0.0001076,2]
[334578254,1723266632101,-489.692,0.0001076,2]
[334578255,1723266632110,-810.0,0.0001076,2]
[334578256,1723266632119,-1894.0,0.0001076,2]
[334578257,1723266632128,-150.498,0.0001076,2]
[334578258,1723266632138,-552.095,0.0001076,2]
[334578259,1723266632147,-1136.0,0.0001076,2]
[334578260,1723266632156,-247.0,0.0001076,2]
[334578261,1723266632166,-3290.0,0.0001076,2]
[334578262,1723266632175,-1882.07326179,0.0001076,2]
[334578272,1723266637937,-484.5265281,0.0001076,2]
[334578273,1723266638049,-1858.427974,0.0001076,2]
[334578274,1723266638108,-711.59115527,0.0001076,2]
[334578275,1723266638121,-903.38108084,0.0001076,2]
[334578276,1723266638130,-1672.0,0.0001076,2]
[334578277,1723266638139,-5132.0,0.0001076,2]
[334578278,1723266638150,-289.0,0.0001076,2]
[334578279,1723266638160,-2982.417,0.0001076,2]
[334578280,1723266638173,-1204.0,0.0001076,2]
[334578281,1723266638183,-96.0092949,0.00010899,2]
[334578282,1723266638202,-432.8307051,0.00010899,2]
[334578283,1723266638212,-492.47603019,0.00010899,2]
[334578284,1723266638224,-1438.26614724,0.00010899,2]
[334578285,1723266638235,-607.8,0.00010899,2]
[334578286,1723266638246,-3037.52782257,0.00010899,2]
[334578287,1723266638255,-3025.38158183,0.000109,2]
[334578288,1723266638266,-400.99224877,0.000109,2]
[334578289,1723266638280,-7240.00000001,0.000109,2]
[334578290,1723266638291,-1163.51090331,0.000109,2]
[334578300,1723266639825,-4605.37986608,0.000109,2]
[334578301,1723266639834,-985.57144737,0.000109,2]
[334578302,1723266641820,-514.63207778,0.0001076,2]
[334578303,1723266641878,-561.36792222,0.0001076,2]
[334578304,1723266641887,-1175.04513803,0.000109,2]
[334578305,1723266641937,-2054.96527202,0.000109,2]
[334578306,1723266641947,-504.36902932,0.000109,2]
[334578310,1723266642813,-511.75073949,0.000109,2]
[334578311,1723266642828,-387.58537377,0.000109,2]
[334578312,1723266642837,-1455.51194129,0.000109,2]
[334578313,1723266642872,-294.14994472,0.000109,2]
[334578314,1723266644127,-276.639247,0.000109,2]
[334578315,1723266644158,-681.1126026,0.000109,2]
[334578316,1723266644169,-469.21916439,0.000109,2]
[334578317,1723266644178,-159.10333718,0.000109,2]
[334578318,1723266644187,-501.63065188,0.000109,2]
[334578319,1723266644199,-594.53865468,0.000109,2]
[334578320,1723266644209,-312.61449338,0.000109,2]
[334578321,1723266644220,-2898.64871145,0.0001094,2]
[334578334,1723266646122,-101.35128855,0.0001094,2]
[334578335,1723266646131,-1669.7374909,0.00010995,2]
[334578336,1723266646141,-968.3489802,0.00010998,2]
[334578337,1723266646150,-2907.90352347,0.00011,2]
[334578338,1723266646161,-6722.5665,0.00011,2]
[334578339,1723266646172,-4643.55379647,0.00011,2]
[334578340,1723266646271,-11935.93431905,0.00011,2]
[334578341,1723266646282,-19282.93604997,0.00011,2]
[334578342,1723266646295,-55747.21617718,0.00011,2]
[334578466,1723266779197,524.73,0.00024657,120]
[334578467,1723266779456,524.73,0.00025342,120]
[334578468,1723266779715,524.73,0.00026027,120]
[334578469,1723266779978,524.73,0.00026712,120]
[334578470,1723266954889,177.99,8.902e-05,2]
[334578473,1723267396439,500.0,0.00024657,120]
[334578474,1723267397062,500.0,0.00025342,120]
[334578475,1723267397380,500.0,0.00026027,120]
[334578476,1723267397678,500.0,0.00026712,120]
[334578477,1723267403386,169.09,8.73e-05,2]
[334578482,1723267832267,-584.59550704,0.00010471,2]
[334578483,1723267832279,-319.40449296,0.00010471,2]
[334578484,1723267832288,-300.0,0.00010581,2]
[334578485,1723267832298,-1.92095045,0.00010582,2]
[334578486,1723267832447,-524.66711351,0.00010582,2]
[334578487,1723267832456,-227.94968673,0.00010582,2]
[334578488,1723267832466,-948.5265983,0.00010582,2]
[334578489,1723267832475,-1248.62000586,0.00010582,2]
[334578490,1723267832485,-902.81869324,0.00010582,2]
[334578504,1723267838012,-1236.9249079,0.00010582,2]
[334578505,1723267838141,-2439.70785269,0.00010582,2]
[334578506,1723267838150,-274.22,0.00010685,2]
[334578507,1723267838161,-160.0,0.00010729,2]
[334578508,1723267838171,-8644.3011134,0.0001079,2]
[334578509,1723267838180,-183.04614244,0.000109,2]
[334578510,1723267838190,-986.55237594,0.000109,2]
[334578511,1723267838200,-312.61449336,0.000109,2]
[334578512,1723267838209,-169.09,0.00010993,2]
[334578513,1723267838218,-933.9502688,0.00010998,2]
[334578514,1723267838230,-529.12011047,0.00010998,2]
[334578515,1723267838264,-267.32210323,0.00010998,2]
[334578516,1723267838273,-500.8854548,0.00010998,2]
[334578517,1723267838283,-439.70493975,0.00011,2]
[334578518,1723267838332,-987.54270914,0.00011,2]
[334578520,1723267840086,-23713.43801055,0.00011,2]
[334578521,1723267840159,-261.31500001,0.00011,2]
[334578522,1723267840171,-1066.1310912,0.00011,2]
[334578523,1723267840182,-4208.58056765,0.00011,2]
[334578524,1723267840192,-83049.37709113,0.00011,2]
[334578525,1723267840426,-1209.54095137,0.00011,2]
[334578542,1723267844195,-1003.23003,0.00010998,2]
[334578547,1723267846065,-0.2952576,0.00010998,2]
[334578548,1723267846075,-846.17988763,0.00011,2]
[334578549,1723267846086,-1891.09879631,0.00011,2]
[334578550,1723267846129,-9002.93288,0.00011,2]
[334578551,1723267846252,-412.652779,0.00011,2]
[334578567,1723267851049,175.71,9.147e-05,2]
[334578571,1723267995722,500.0,0.00024657,120]
[334578572,1723267995991,500.0,0.00025342,120]
[334578573,1723267996324,500.0,0.00026027,120]
[334578574,1723267996598,500.0,0.00026712,120]
[334578577,1723268325390,191.17,8.22e-05,2]
[334578580,1723268388278,166454.78856519,8.22e-05,2]
[334578583,1723268588078,-550.0,0.0001,2]
[334578584,1723268588100,-250.0,0.00010054,2]
[334578585,1723268588127,-180.62,0.00010167,2]
[334578586,1723268588149,-276.8,0.00010235,2]
[334578587,1723268588170,-442.33,0.00010249,2]
[334578588,1723268588192,-200.0,0.00010249,2]
[334578589,1723268588216,-158.85,0.00010324,2]
[334578590,1723268588239,-191.17,0.00010484,2]
[334578591,1723268588261,-530.8,0.000105,2]
[334578592,1723268588282,-150.0,0.000105,2]
[334578593,1723268588303,-150.0,0.000105,2]
[334578594,1723268588324,-150.0,0.000105,2]
[334578595,1723268588346,-300.0,0.00010599,2]
[334578596,1723268588368,-156.0,0.000106,2]
[334578597,1723268588390,-426.27,0.000106,2]
[334578598,1723268588415,-204.22,0.000106,2]
[334578599,1723268588436,-150.0,0.000106,2]
[334578600,1723268588457,-150.0,0.000106,2]
[334578601,1723268588478,-150.0,0.000106,2]